bitfinex/quotes_SOLUSD_20250904
["timestamp","ask_amount","ask_price","bid_price","bid_amount"]
[1757013019588,38.52216157,203.8,203.79,4.55988983]
[1757013021303,38.52216157,203.8,203.79,5.24988983]
[1757013021501,38.52216157,203.8,203.79,0.69]
[1757013021685,38.52216157,203.8,203.79,4.55988983]
[1757013022393,38.52216157,203.8,203.79,0.03]
[1757013022795,0.06,203.8,203.79,5.27988983]
[1757013022992,38.38,203.8,203.79,5.27988983]
[1757013023382,0.06,203.8,203.79,5.27988983]
[1757013023704,0.06,203.8,203.79,23.78249596]
[1757013023876,0.06,203.8,203.79,25.74969295]
[1757013024078,0.06,203.8,203.79,19.22260613]
[1757013024298,0.06,203.8,203.79,23.78249596]
[1757013025390,0.06,203.8,203.79,19.22260613]
[1757013025575,0.06,203.8,203.79,10.18690195]
[1757013027003,0.06,203.8,203.79,5.62701212]
[1757013027303,0.06,203.8,203.79,4.58988983]
[1757013028095,0.06,203.8,203.79,0.03]
[1757013028406,0.89216157,203.8,203.79,0.03]
[1757013028798,0.20216157,203.8,203.79,0.03]
[1757013029384,0.06,203.8,203.79,0.03]
[1757013029690,0.06,203.8,203.79,4.58988983]
[1757013030605,0.20216157,203.8,203.79,0.03]
[1757013038391,0.06,203.8,203.79,5.27988983]
[1757013038587,0.06,203.8,203.79,18.87548384]
[1757013039286,0.06,203.8,203.79,23.78249596]
[1757013039788,0.06,203.8,203.79,30.30948604]
[1757013041219,0.06,203.83,203.82,39.59559401]
[1757013041419,0.06,203.83,203.82,44.15548384]
[1757013041726,0.06,203.83,203.82,44.84548384]
[1757013042190,0.06,203.83,203.82,49.7517737]
[1757013043217,0.06,203.85,203.82,49.7517737]
[1757013043522,0.06,203.85,203.84,18.15548384]
[1757013044014,0.06,203.85,203.84,18.84548384]
[1757013044317,0.06,203.85,203.84,23.75129231]
[1757013045100,0.06,203.85,203.84,38.50019229]
[1757013048424,1e-08,203.85,203.84,43.3848734]
[1757013049415,1e-08,203.85,203.84,81.6648734]
[1757013049725,1e-08,203.85,203.84,81.6448734]
[1757013052600,1e-08,203.85,203.84,43.3848734]
[1757013052804,1e-08,203.85,203.84,81.6448734]
[1757013053603,1e-08,203.85,203.84,161.6448734]
[1757013058209,1e-08,203.85,203.84,123.3848734]
[1757013058409,1e-08,203.85,203.84,161.6448734]
[1757013058925,1e-08,203.85,203.84,123.3848734]
[1757013059313,1e-08,203.85,203.84,161.6248734]
[1757013060233,1e-08,203.85,203.84,123.3848734]
[1757013060522,1e-08,203.85,203.84,161.6248734]
[1757013061104,0.06,203.91,203.9,39.59559401]
[1757013061305,0.06,203.91,203.9,44.15548384]
[1757013061514,0.72,203.91,203.9,42.50928661]
[1757013063028,0.72,203.91,203.9,47.41365149]
[1757013063633,0.06,203.91,203.9,47.41365149]
[1757013064011,0.06,203.91,203.9,49.37978484]
[1757013064836,0.72,203.91,203.9,49.37978484]
[1757013065321,0.06,203.91,203.9,49.37978484]
[1757013067007,0.06,203.91,203.9,46.46609224]
[1757013067208,0.06,203.91,203.9,49.37978484]
[1757013068132,0.72,203.91,203.9,27.96613335]
[1757013068332,0.72,203.91,203.9,1.96613335]
[1757013068933,3.77585417,203.91,203.9,1.96613335]
[1757013069124,0.14216157,203.9,203.84,4.9056357]
[1757013069439,0.66,203.89,203.87,2.9136926]
[1757013069738,7.96026209,203.9,203.87,2.9136926]
[1757013069739,0.66,203.88,203.87,2.9136926]
[1757013070441,0.80216157,203.88,203.87,2.9136926]
[1757013071036,0.80216157,203.88,203.84,2.9136926]
[1757013071218,0.66,203.87,203.84,2.9136926]
[1757013071533,0.66,203.86,203.83,0.03]
[1757013071735,0.80216157,203.86,203.85,4.90440792]
[1757013071938,0.80216157,203.86,203.83,0.03]
[1757013072136,0.80216157,203.86,203.83,14.78325186]
[1757013072336,0.66,203.85,203.83,0.03]
[1757013072734,0.66,203.84,203.83,0.03]
[1757013077042,0.66,203.87,203.83,14.28559401]
[1757013077347,0.66,203.87,203.84,2.9136926]
[1757013077652,0.66,203.86,203.84,7.81811932]
[1757013078247,0.66,203.89,203.85,2.9136926]
[1757013078545,0.66,203.89,203.87,2.9136926]
[1757013078860,0.06,203.91,203.88,2.9136926]
[1757013078861,38.28,203.91,203.88,2.9136926]
[1757013079027,0.66,203.9,203.88,2.9136926]
[1757013079218,0.66,203.9,203.88,5.8873852]
[1757013079846,0.80216157,203.89,203.88,2.9736926]
[1757013080029,0.80216157,203.89,203.86,2.9136926]
[1757013080229,0.80216157,203.89,203.86,17.18928661]
[1757013081349,38.22,203.9,203.88,2.9136926]
[1757013083031,39.08216157,203.91,203.88,2.9136926]
[1757013084654,39.37676157,203.91,203.88,2.9136926]
[1757013084848,0.66,203.9,203.88,2.9136926]
[1757013085348,38.71676157,203.91,203.89,2.9136926]
[1757013085349,0.3546,203.91,203.89,2.9136926]
[1757013085662,38.5746,203.91,203.9,2.9136926]
[1757013085861,0.3546,203.91,203.9,17.18928661]
[1757013086233,0.3546,203.91,203.9,14.27559401]
[1757013086432,0.3546,203.91,203.9,17.18928661]
[1757013086654,0.3546,203.91,203.9,22.09365149]
[1757013089356,0.3546,203.91,203.9,33.74842189]
[1757013089547,0.3546,203.91,203.9,22.09365149]
[1757013091654,0.3546,203.91,203.9,59.74842189]
[1757013094067,0.3546,203.91,203.9,48.09365149]
[1757013096854,0.3546,203.91,203.9,59.74842189]
[1757013097159,0.3546,203.91,203.9,61.71436198]
[1757013098039,0.06,203.94,203.93,39.59559401]
[1757013098241,0.06,203.94,203.93,42.50928661]
[1757013098475,0.06,203.94,203.93,43.18928661]
[1757013098642,0.06,203.94,203.93,45.15493687]
[1757013099046,0.06,203.94,203.93,50.05858027]
[1757013100060,0.06,203.94,203.93,47.14488767]
[1757013100262,0.06,203.95,203.93,47.14488767]
[1757013100263,0.06,203.95,203.94,13.59559401]
[1757013100453,0.06,203.95,203.94,17.18928661]
[1757013101157,0.06,203.95,203.94,22.09268957]
[1757013103870,0.06,203.95,203.94,24.05814666]
[1757013104064,0.06,203.95,203.94,104.05814666]
[1757013104742,0.06,203.95,203.94,103.37814666]
[1757013104948,0.06,203.95,203.94,129.37814666]
[1757013105374,0.72,203.95,203.94,121.5610511]
[1757013105557,0.72,203.95,203.94,124.4747437]
[1757013105980,0.06,203.95,203.94,129.37814666]
[1757013106168,0.72,203.95,203.94,129.37814666]
[1757013107080,0.06,203.95,203.94,129.37814666]
[1757013108360,0.75,203.95,203.94,129.37814666]
[1757013108554,0.06,203.95,203.94,129.37814666]
[1757013108860,0.75,203.95,203.94,84.87914969]
[1757013109067,0.06,203.95,203.94,89.78255265]
[1757013109978,0.06,203.95,203.94,9.78255265]
[1757013111175,0.75,203.95,203.94,4.87914969]
[1757013113771,0.06,203.95,203.94,23.37814666]
[1757013116072,0.75,203.95,203.94,4.87914969]
[1757013116781,0.06,203.95,203.94,4.87914969]
[1757013118387,0.75,203.95,203.94,4.87914969]
[1757013118783,0.06,203.95,203.94,4.87914969]
[1757013119075,0.75,203.95,203.93,2.9136926]
[1757013119278,0.06,203.95,203.94,2.9136926]
[1757013119481,0.06,203.95,203.94,10.93205046]
[1757013120558,0.06,203.95,203.94,29.43104743]
[1757013120775,0.06,203.95,203.94,30.13104743]
[1757013121483,0.06,203.95,203.94,29.43104743]
[1757013121679,0.06,203.95,203.94,24.52764447]
[1757013122377,0.06,203.95,203.94,29.43104743]
[1757013123461,0.06,203.95,203.94,31.06890868]
[1757013123862,0.06,203.95,203.94,26.16550572]
[1757013126003,0.06,203.95,203.94,8.01835786]
[1757013126178,0.06,203.95,203.94,12.56991171]
[1757013126665,0.06,203.95,203.94,17.47331467]
[1757013127072,0.75,203.95,203.94,9.45495681]
[1757013127271,0.06,203.95,203.94,9.45495681]
[1757013127462,0.06,203.95,203.94,4.55155385]
[1757013127670,0.06,203.95,203.94,4.58155385]
[1757013127984,0.75,203.95,203.94,0.03]
[1757013130190,0.75,203.95,203.94,4.58155385]
[1757013131076,0.06,203.95,203.94,0.03]
[1757013131391,0.06,203.95,203.94,4.58155385]
[1757013132992,0.06,203.95,203.94,18.87714786]
[1757013133514,0.06,203.95,203.94,20.84289472]
[1757013134091,0.06,203.95,203.94,25.74629768]
[1757013137599,0.06,203.96,203.94,25.74629768]
[1757013137799,0.06,203.96,203.95,18.85714786]
[1757013138006,0.06,203.96,203.95,14.30559401]
[1757013138211,0.06,203.96,203.95,18.85714786]
[1757013138493,0.06,203.96,203.95,23.76031039]
[1757013139093,0.06,203.96,203.95,23.05031039]
[1757013139297,0.06,203.96,203.95,49.05031039]
[1757013140178,0.06,203.96,203.95,30.55155385]
[1757013141381,0.06,203.96,203.95,35.45471638]
[1757013142095,0.72,203.96,203.95,26.0]
[1757013142299,0.72,203.96,203.95,4.55155385]
[1757013143397,0.72,203.96,203.94,0.03]
[1757013145208,0.06,203.96,203.95,4.55155385]
[1757013147001,0.06,203.96,203.95,9.45471638]
[1757013151092,0.72,203.96,203.94,0.03]
[1757013151286,0.66,203.95,203.94,0.03]
[1757013154487,0.06,203.96,203.94,4.58155385]
[1757013154692,0.06,203.96,203.95,4.55155385]
[1757013156697,0.06,203.96,203.95,9.45471638]
[1757013156896,0.06,203.96,203.95,10.16471638]
[1757013158211,0.72,203.96,203.95,4.55155385]
[1757013159209,0.72,203.96,203.94,4.58155385]
[1757013161402,0.06,203.96,203.95,5.26155385]
[1757013162309,0.06,203.96,203.95,10.5231077]
[1757013163407,0.06,203.96,203.95,15.42627023]
[1757013165026,0.06,203.96,203.95,29.02186424]
[1757013169926,0.76,203.96,203.94,0.03]
[1757013170230,0.84216157,203.95,203.94,0.03]
[1757013170804,0.84216157,203.95,203.94,4.58155385]
[1757013171822,0.14216157,203.95,203.94,4.58155385]
[1757013172014,0.14216157,203.95,203.94,0.03]
[1757013172015,0.84216157,203.95,203.94,0.03]
[1757013172320,0.20216157,203.96,203.94,0.03]
[1757013172527,0.90216157,203.96,203.94,0.03]
[1757013172826,0.06,203.96,203.95,4.55155385]
[1757013173526,0.76,203.96,203.95,4.55155385]
[1757013173822,0.76,203.96,203.94,4.9333922]
[1757013174028,0.76,203.96,203.94,9.48494605]
[1757013174231,0.76,203.96,203.94,4.58155385]
[1757013174522,0.76,203.96,203.94,0.03]
[1757013174729,0.76,203.96,203.94,4.58155385]
[1757013175220,0.06,203.96,203.94,4.58155385]
[1757013176208,0.06,203.96,203.95,4.55155385]
[1757013177226,0.06,203.96,203.94,5.64330548]
[1757013177432,0.06,203.96,203.95,4.55155385]
[1757013180235,0.06,203.96,203.95,4.58155385]
[1757013181532,0.06,203.96,203.95,0.03]
[1757013182107,0.90216157,203.96,203.95,0.03]
[1757013183731,0.20216157,203.96,203.95,4.58155385]
[1757013183917,38.30216157,203.96,203.95,4.58155385]
[1757013184230,38.16,203.96,203.95,5.29155385]
[1757013184617,0.06,203.96,203.95,10.19471638]
[1757013185313,0.06,203.96,203.95,23.79031039]
[1757013185510,0.06,203.96,203.95,22.1504154]
[1757013186109,0.06,203.96,203.95,19.23875654]
[1757013186310,0.06,203.96,203.95,22.1504154]
[1757013191043,0.06,203.96,203.95,36.89279236]
[1757013194744,0.06,203.96,203.95,14.77237696]
[1757013195041,0.06,203.96,203.95,22.58719835]
[1757013195242,0.06,203.96,203.95,23.29719835]
[1757013197724,0.06,203.96,203.95,36.89279236]
[1757013202445,0.06,203.96,203.95,36.18279236]
[1757013204751,0.06,203.96,203.95,36.89279236]
[1757013208765,0.06,203.99,203.98,28.91165886]
[1757013209141,0.06,203.99,203.98,43.21725287]
[1757013209343,0.06,203.99,203.98,45.18251683]
[1757013210648,0.06,203.99,203.98,50.08495824]
[1757013211166,0.06,203.99,203.98,61.73159368]
[1757013211359,0.06,204.01,203.99,13.59559401]
[1757013211565,0.06,204.01,204.0,14.5582943]
[1757013211872,0.06,204.01,204.0,15.2682943]
[1757013212054,0.06,204.01,204.0,30.00704986]
[1757013213053,0.06,204.01,204.0,34.90901064]
[1757013214066,0.06,204.01,204.0,23.2623752]
[1757013214369,0.06,204.01,204.0,22.5523752]
[1757013217260,0.06,204.01,204.0,23.2623752]
[1757013219645,0.78,204.01,204.0,31.24600843]
[1757013219846,0.78,204.01,204.0,17.65041442]
[1757013220071,0.78,204.01,203.99,0.03]
[1757013220072,0.92216157,204.01,203.99,0.03]
[1757013220271,0.14216157,204.0,203.99,0.03]
[1757013220664,0.86216157,204.0,203.99,0.03]
[1757013223450,5.76412235,204.0,203.99,0.03]
[1757013226154,0.86216157,204.0,203.99,0.03]
[1757013227562,38.90216157,204.0,203.99,0.03]
[1757013229966,0.86216157,204.0,203.99,0.03]
[1757013230159,38.90216157,204.0,203.99,0.03]
[1757013233475,38.96216157,204.0,203.99,0.03]
[1757013233968,43.86412235,204.0,203.99,0.03]
[1757013235056,38.96216157,204.0,203.99,0.03]
[1757013235671,43.86412235,204.0,203.99,0.03]
[1757013236462,46.77578121,204.0,203.99,0.03]
[1757013237768,43.86412235,204.0,203.99,0.03]
[1757013238077,46.77578121,204.0,203.99,0.03]
[1757013242465,5.82412235,204.0,203.99,0.03]
[1757013242669,46.77578121,204.0,203.99,0.03]
[1757013245461,48.41745068,204.0,203.99,0.03]
[1757013247681,52.97077901,204.0,203.99,0.03]
[1757013248990,48.41745068,204.0,203.99,0.03]
[1757013249291,10.37745068,204.0,203.99,0.03]
[1757013249491,43.14412235,204.0,203.99,0.03]
[1757013249785,47.69745068,204.0,203.99,0.03]
[1757013250870,9.65745068,204.0,203.99,0.03]
[1757013251079,38.24216157,204.0,203.99,0.69]
[1757013251394,47.69745068,204.0,203.99,0.03]
[1757013252372,43.14412235,204.0,203.99,0.03]
[1757013253171,38.24216157,204.0,203.99,0.03]
[1757013253487,0.06,204.0,203.99,0.69]
[1757013253792,38.08,204.0,203.99,5.24332833]
[1757013254386,38.08,204.0,203.99,0.69]
[1757013255589,38.08,204.0,203.99,5.24332833]
[1757013256901,38.08,204.0,203.99,0.69]
[1757013266696,38.08,204.0,203.99,10.14552941]
[1757013268000,38.08,204.0,203.99,23.74112342]
[1757013268508,0.06,204.0,203.99,38.48205161]
[1757013269213,0.06,204.0,203.99,33.57985053]
[1757013269380,0.06,204.0,203.99,23.74112342]
[1757013270218,0.06,204.0,203.99,15.43092819]
[1757013270404,0.06,204.0,203.99,0.03]
[1757013270605,0.06,204.0,203.99,0.72]
[1757013270987,0.06,204.0,203.99,10.17552941]
[1757013272313,0.06,204.0,203.99,5.27332833]
[1757013273121,0.06,204.0,203.99,0.72]
[1757013273326,0.06,204.0,203.99,4.58332833]
[1757013273694,0.06,204.0,203.99,0.03]
[1757013275004,0.06,204.0,203.99,0.72]
[1757013277095,0.06,204.0,203.99,0.03]
[1757013278102,0.78,204.0,203.99,0.03]
[1757013278303,0.92216157,204.0,203.99,0.03]
[1757013279613,5.82412235,204.0,203.99,0.03]
[1757013280818,0.20216157,204.0,203.99,0.03]
[1757013281001,0.92216157,204.0,203.99,0.03]
[1757013282513,0.20216157,204.0,203.99,0.03]
[1757013283517,38.20216157,204.0,203.99,0.03]
[1757013284518,38.92216157,204.0,203.99,0.03]
[1757013284910,38.20216157,204.0,203.99,0.03]
[1757013285713,38.06,204.0,203.99,0.72]
[1757013285916,38.06,204.0,203.99,5.27332833]
[1757013286418,38.06,204.0,203.99,0.72]
[1757013287529,38.06,204.0,203.99,0.03]
[1757013292604,0.06,204.0,203.99,0.73]
[1757013292807,38.04,204.0,203.99,0.03]
[1757013293022,0.06,204.0,203.99,5.28332833]
[1757013293308,38.04,204.0,203.99,5.28332833]
[1757013293525,0.06,204.0,203.99,5.28332833]
[1757013295032,0.06,204.0,203.99,25.74667709]
[1757013302639,0.06,204.0,203.99,30.30000542]
[1757013303634,0.06,204.0,203.99,25.74667709]
[1757013304214,0.06,204.0,203.99,21.19334876]
[1757013304415,0.06,204.0,203.99,25.74667709]
[1757013304932,0.06,204.0,203.99,21.19334876]
[1757013305138,0.06,204.0,203.99,25.74667709]
[1757013305927,0.06,204.0,203.99,25.04667709]
[1757013306241,0.06,204.0,203.99,20.14447601]
[1757013306415,0.06,204.0,203.99,15.59114768]
[1757013306616,0.06,204.0,203.99,20.14447601]
[1757013307036,0.06,204.0,203.99,23.08112342]
[1757013307220,0.06,204.0,203.99,23.78112342]
[1757013307425,0.06,204.0,203.99,21.43927784]
[1757013307734,0.06,204.0,203.99,23.40473493]
[1757013308329,0.06,204.0,203.99,24.10473493]
[1757013308516,0.06,204.0,203.99,23.40473493]
[1757013308727,0.06,204.0,203.99,24.10473493]
[1757013309142,0.06,204.0,203.99,35.75066593]
[1757013310735,0.06,204.0,203.99,21.19325218]
[1757013310940,0.06,204.0,203.99,24.10473493]
[1757013316045,0.06,204.01,204.0,39.59559401]
[1757013316223,0.06,204.01,204.0,54.85300776]
[1757013316430,0.06,204.01,204.0,81.14707676]
[1757013316634,0.06,204.01,204.0,45.17205109]
[1757013316826,0.06,204.01,204.0,44.47205109]
[1757013317030,0.06,204.01,204.0,45.17205109]
[1757013318740,0.06,204.01,204.0,50.07401187]
[1757013318925,0.06,204.01,204.0,61.71994287]
[1757013320652,0.06,204.01,204.0,44.47205109]
[1757013321431,0.06,204.01,204.0,45.19205109]
[1757013321623,0.06,204.01,204.0,50.09401187]
[1757013322525,0.06,204.01,204.0,99.67994287]
[1757013323044,0.06,204.01,204.0,61.31401187]
[1757013323255,0.06,204.01,204.0,62.03401187]
[1757013324652,0.06,204.01,204.0,73.67994287]
[1757013325945,0.06,204.01,204.0,59.12252912]
[1757013326154,0.06,204.01,204.0,73.67994287]
[1757013326346,0.06,204.01,204.0,35.73994287]
[1757013326547,0.06,204.01,204.0,73.67994287]
[1757013329665,0.06,204.01,204.0,20.46252912]
[1757013329838,0.06,204.01,204.0,15.56056834]
[1757013330041,0.76,204.01,204.0,23.37401187]
[1757013330361,0.06,204.01,204.0,20.46252912]
[1757013330557,0.76,204.01,204.0,23.37401187]
[1757013331338,0.06,204.01,204.0,23.37401187]
[1757013333849,0.06,204.01,204.0,23.40401187]
[1757013335037,0.06,204.01,204.0,20.49252912]
[1757013335258,0.06,204.01,204.0,23.40401187]
[1757013335456,0.06,204.01,204.0,24.12401187]
[1757013338158,0.06,204.01,204.0,23.40401187]
[1757013338863,0.06,204.01,204.0,24.12401187]
[1757013339046,0.06,204.01,204.0,62.04401187]
[1757013341443,0.06,204.01,204.0,59.13252912]
[1757013341844,0.06,204.01,204.0,62.04401187]
[1757013342150,0.06,204.01,204.0,24.12401187]
[1757013342366,0.06,204.01,204.0,62.04401187]
[1757013345149,0.06,204.01,204.0,59.13252912]
[1757013345360,0.06,204.01,204.0,62.04401187]
[1757013347972,0.06,204.01,204.0,59.13252912]
[1757013348174,0.06,204.01,204.0,62.04401187]
[1757013348360,0.06,204.01,204.0,21.21252912]
[1757013348674,0.06,204.01,204.0,59.13252912]
[1757013348875,0.06,204.01,204.0,62.04401187]
[1757013349474,0.74,204.01,204.0,1.99497433]
[1757013349665,3.65148275,204.01,204.0,0.03]
[1757013349971,3.79364432,204.01,204.0,0.03]
[1757013351456,8.69536482,204.01,204.0,0.03]
[1757013351871,3.79364432,204.01,204.0,0.03]
[1757013353382,8.69536482,204.01,204.0,0.03]
[1757013354961,3.79364432,204.01,204.0,0.03]
[1757013356586,8.69536482,204.01,204.0,0.03]
[1757013356771,20.34129582,204.01,204.0,0.03]
[1757013357164,8.69536482,204.01,204.0,0.03]
[1757013358189,20.34129582,204.01,204.0,0.03]
[1757013358984,22.30762247,204.01,204.0,0.03]
[1757013359958,0.14216157,204.0,203.99,0.03]
[1757013360161,14.69957532,204.0,203.99,0.03]
[1757013360386,15.37957532,204.0,203.99,0.03]
[1757013360594,5.70016432,204.0,203.99,0.03]
[1757013360764,2.78868157,204.0,203.99,0.03]
[1757013360969,38.74216157,204.0,203.99,0.03]
[1757013361170,41.65364432,204.0,203.99,0.03]
[1757013361787,46.5556051,204.0,203.99,0.03]
[1757013362295,41.65364432,204.0,203.99,0.03]
[1757013362459,3.73364432,204.0,203.99,0.03]
[1757013362764,38.06216157,204.0,203.99,0.03]
[1757013362972,37.92,204.0,203.99,0.69]
[1757013363290,38.06216157,204.0,203.99,0.03]
[1757013363463,37.92,204.0,203.99,0.03]
[1757013363862,37.92,204.0,203.99,14.28559401]
[1757013364366,37.92,204.0,203.99,0.69]
[1757013364973,37.92,204.0,203.99,0.03]
[1757013366395,37.92,204.0,203.99,0.69]
[1757013366577,37.92,204.0,203.99,0.03]
[1757013367569,37.92,204.0,203.99,0.69]
[1757013368296,37.98,204.01,204.0,13.59559401]
[1757013368475,37.98,204.01,204.0,17.16707676]
[1757013369596,37.98,204.01,204.0,18.80480226]
[1757013370107,0.06,204.01,204.0,23.70676304]
[1757013371382,0.06,204.01,204.0,38.4455186]
[1757013374406,0.06,204.01,204.0,33.23631035]
[1757013374576,0.06,204.01,204.0,33.89631035]
[1757013374775,0.06,204.01,204.0,19.15755479]
[1757013375210,0.06,204.01,204.0,23.70676304]
[1757013375576,0.06,204.01,204.0,21.12281875]
[1757013375999,0.06,204.01,204.0,19.15755479]
[1757013376899,0.06,204.01,204.0,13.59559401]
[1757013377503,5.28920825,204.01,203.99,13.62559401]
[1757013377682,0.71,204.0,203.99,13.62559401]
[1757013378196,0.71,204.0,203.99,0.03]
[1757013379287,4.60920825,204.01,203.99,0.03]
[1757013379495,5.31920825,204.01,203.99,0.03]
[1757013380396,9.24057807,204.0,203.99,0.03]
[1757013380702,9.24057807,204.0,203.97,0.03]
[1757013380703,4.69136982,203.98,203.97,0.03]
[1757013380887,42.59136982,203.98,203.97,0.03]
[1757013381192,43.30136982,203.98,203.97,0.03]
[1757013381795,48.20381123,203.98,203.97,0.03]
[1757013382995,50.17052461,203.98,203.97,0.03]
[1757013383300,26.0,203.96,203.95,0.03]
[1757013383493,30.69136982,203.96,203.95,0.03]
[1757013383797,74.20429196,203.96,203.95,0.03]
[1757013386203,74.22429196,203.96,203.95,0.03]
[1757013388300,0.14216157,203.95,203.92,0.03]
[1757013388604,0.14216157,203.93,203.92,0.03]
[1757013388805,4.69136982,203.93,203.92,0.03]
[1757013389102,48.22501322,203.93,203.92,0.03]
[1757013394217,9.59501322,203.93,203.92,0.03]
[1757013394393,47.51501322,203.93,203.92,0.03]
[1757013394592,9.59501322,203.93,203.92,0.03]
[1757013394900,47.51501322,203.93,203.92,0.03]
[1757013395214,48.22501322,203.93,203.92,0.03]
[1757013399392,47.51501322,203.93,203.92,0.03]
[1757013400511,48.22501322,203.93,203.92,0.03]
[1757013401309,47.51501322,203.93,203.92,0.03]
[1757013401828,5.04580497,203.93,203.92,0.03]
[1757013402131,47.51501322,203.93,203.92,0.03]
[1757013407003,9.59501322,203.93,203.92,0.03]
[1757013407204,47.51501322,203.93,203.92,0.03]
[1757013407523,9.59501322,203.93,203.92,0.03]
[1757013407728,47.51501322,203.93,203.92,0.71]
[1757013409122,47.51501322,203.93,203.92,0.03]
[1757013410428,48.18501322,203.93,203.92,0.03]
[1757013410640,48.18501322,203.93,203.9,0.03]
[1757013410842,4.69136982,203.91,203.9,0.03]
[1757013411021,42.61136982,203.91,203.9,0.03]
[1757013411220,43.28136982,203.91,203.9,0.03]
[1757013411812,48.18549418,203.91,203.9,0.03]
[1757013413409,47.51549418,203.91,203.9,0.03]
[1757013414417,48.18549418,203.91,203.9,0.03]
[1757013414625,47.51549418,203.91,203.9,0.03]
[1757013415535,48.18549418,203.91,203.9,0.03]
[1757013416536,47.51549418,203.91,203.9,0.03]
[1757013417527,47.51549418,203.91,203.9,0.71]
[1757013418936,4.90412436,203.91,203.9,0.71]
[1757013419120,47.37333261,203.91,203.9,0.03]
[1757013419437,47.51549418,203.91,203.9,0.03]
[1757013419632,47.37333261,203.91,203.9,0.03]
[1757013419813,47.37333261,203.91,203.9,0.71]
[1757013420013,47.51549418,203.91,203.9,0.71]
[1757013421249,47.51549418,203.91,203.9,0.03]
[1757013421929,48.18549418,203.91,203.9,0.03]
[1757013422137,52.73470243,203.91,203.9,0.03]
[1757013422828,48.18549418,203.91,203.9,0.03]
[1757013423232,52.73470243,203.91,203.9,0.03]
[1757013424852,48.18549418,203.91,203.9,0.03]
[1757013425748,47.51549418,203.91,203.9,0.03]
[1757013426627,9.59549418,203.91,203.9,0.71]
[1757013426831,47.51549418,203.91,203.9,0.71]
[1757013427149,47.51549418,203.91,203.9,0.03]
[1757013427932,9.59549418,203.91,203.9,0.03]
[1757013428124,47.51549418,203.91,203.9,0.71]
[1757013428644,47.51549418,203.91,203.9,0.03]
[1757013430541,47.51549418,203.91,203.9,0.71]
[1757013431257,47.51549418,203.91,203.9,0.03]
[1757013431458,45.88236091,203.91,203.9,0.71]
[1757013431831,0.14216157,203.91,203.9,0.71]
[1757013432030,37.92,203.91,203.9,0.71]
[1757013432339,38.06216157,203.91,203.9,0.71]
[1757013434254,45.88236091,203.91,203.9,0.03]
[1757013435946,45.94236091,203.91,203.9,0.03]
[1757013436447,0.20216157,203.91,203.9,0.71]
[1757013436629,38.12216157,203.91,203.9,0.71]
[1757013437526,43.02628593,203.91,203.9,0.71]
[1757013439450,0.20216157,203.91,203.9,0.71]
[1757013439650,38.12216157,203.91,203.9,0.71]
[1757013439852,38.12216157,203.91,203.9,3.62607498]
[1757013440145,38.12216157,203.91,203.9,0.71]
[1757013445168,38.12216157,203.91,203.9,0.03]
[1757013445338,38.12216157,203.91,203.9,0.73]
[1757013446446,43.02628593,203.91,203.9,0.03]
[1757013449858,45.94236091,203.91,203.9,0.03]
[1757013450262,46.62236091,203.91,203.9,0.03]
[1757013450453,58.28666083,203.91,203.9,0.03]
[1757013451164,60.25395457,203.91,203.9,0.03]
[1757013453253,26.0,203.89,203.88,0.03]
[1757013453446,3.05823655,203.88,203.87,1e-08]
[1757013453647,0.14216157,203.85,203.83,0.03]